fUST/lending_fUST_20250111
["ID","MTS","AMOUNT","RATE_DAILY","PERIOD"]
[348434495,1736527840005,-500.0,0.00022191,3]
[348434497,1736527840014,-500.0,0.00022191,3]
[348434499,1736527840024,-500.0,0.00022191,3]
[348434501,1736527840033,-640.54357794,0.00022191,3]
[348434503,1736527840043,-500.0,0.00022191,3]
[348434505,1736527840052,-500.0,0.00022191,3]
[348434507,1736527840062,-500.0,0.00022191,3]
[348434509,1736527840071,-500.0,0.00022191,3]
[348434511,1736527840081,-672.64,0.00022191,3]
[348434513,1736527840091,-1756.02,0.00022191,3]
[348434515,1736527840102,-500.0,0.00022191,3]
[348434517,1736527840112,-600.44,0.00022191,3]
[348434519,1736527840121,-500.0,0.00022191,3]
[348434521,1736527840131,-500.0,0.00022191,3]
[348434523,1736527840140,-500.0,0.00022191,3]
[348434525,1736527840149,-500.0,0.00022191,3]
[348434527,1736527840159,-500.0,0.00022191,3]
[348434529,1736527840168,-654.9,0.00022191,3]
[348434531,1736527840182,-515.73,0.00022191,3]
[348434533,1736527840191,-500.0,0.00022191,3]
[348434535,1736527840201,-3161.45,0.00022191,3]
[348434537,1736527840211,-500.0,0.00022191,3]
[348434539,1736527840220,-500.0,0.00022191,3]
[348434541,1736527840229,-500.0,0.00022191,3]
[348434542,1736527840238,-500.0,0.00022191,3]
[348434543,1736527840247,-3561.05,0.00022191,3]
[348434544,1736527840257,-1222.94,0.00022191,3]
[348434545,1736527840266,-721.69,0.00022191,3]
[348434546,1736527840276,-778.21,0.00022191,2]
[348434547,1736527840286,-1560.23,0.00022191,3]
[348434548,1736527840295,-1763.22,0.00022191,3]
[348434549,1736527840306,-698.96,0.00022191,3]
[348434550,1736527840315,-1421.79,0.00022191,3]
[348434551,1736527840324,-500.0,0.00022191,3]
[348434552,1736527840333,-562.09,0.00022191,3]
[348434553,1736527840342,-500.0,0.00022191,3]
[348434554,1736527840351,-1666.59,0.00022191,3]
[348434555,1736527840360,-500.0,0.00022191,3]
[348434556,1736527840370,-500.0,0.00022191,3]
[348434557,1736527840379,-500.0,0.00022191,3]
[348434558,1736527840389,-960.21,0.00022191,3]
[348434559,1736527840398,-1197.79,0.00022191,3]
[348434560,1736527840408,-500.0,0.00022191,3]
[348434561,1736527840418,-500.0,0.00022191,3]
[348434564,1736527840571,-713.71,0.00022191,3]
[348434566,1736527840581,-500.0,0.00022191,3]
[348434568,1736527840591,-933.73,0.00022191,3]
[348434570,1736527840601,-420.0,0.00022199,2]
[348434572,1736527840611,-871.19,0.000223,2]
[348434573,1736527840621,-1328.83,0.000223,2]
[348434574,1736527840632,-500.0,0.00022465,3]
[348434576,1736527840641,-500.0,0.00022465,3]
[348434578,1736527840651,-500.0,0.00022465,3]
[348434580,1736527840660,-500.0,0.00022465,3]
[348434582,1736527840671,-506.13210555,0.00022465,3]
[348434584,1736527840682,-500.0,0.00022465,3]
[348434586,1736527840691,-500.0,0.00022465,3]
[348434588,1736527840701,-501.95413865,0.00022465,3]
[348434590,1736527840711,-500.0,0.00022465,3]
[348434592,1736527840720,-500.0,0.00022465,3]
[348434593,1736527840729,-441.58304375,0.00022465,3]
[348434594,1736527840740,-500.0,0.00022465,3]
[348434595,1736527840750,-500.0,0.00022465,3]
[348434596,1736527840760,-500.0,0.00022465,3]
[348434597,1736527840769,-500.0,0.00022465,3]
[348434598,1736527840779,-7138.33,0.00022465,3]
[348434599,1736527840788,-500.0,0.00022465,3]
[348434600,1736527840797,-223.76910194,0.00022465,3]
[348434601,1736527840807,-500.0,0.00022465,3]
[348434602,1736527840816,-505.00517027,0.00022465,3]
[348434603,1736527840826,-500.0,0.00022465,3]
[348434604,1736527840836,-841.63,0.00022465,3]
[348434605,1736527840845,-500.0,0.00022465,3]
[348434606,1736527840855,-500.0,0.00022465,3]
[348434607,1736527840865,-500.0,0.00022465,3]
[348434608,1736527840875,-500.0,0.00022465,3]
[348434609,1736527840885,-4041.71,0.00022465,3]
[348434610,1736527840894,-500.0,0.00022465,3]
[348434611,1736527840904,-500.0,0.00022465,3]
[348434612,1736527840917,-500.0,0.00022465,3]
[348434613,1736527840931,-500.0,0.00022465,3]
[348434614,1736527840940,-500.0,0.00022465,3]
[348434615,1736527840950,-500.0,0.00022465,3]
[348434616,1736527840959,-500.0,0.00022465,3]
[348434617,1736527840970,-254.5478698,0.00022465,3]
[348434618,1736527840979,-500.0,0.00022465,3]
[348434619,1736527840989,-500.0,0.00022465,3]
[348434620,1736527840999,-737.56,0.00022465,3]
[348434621,1736527841016,-500.0,0.00022465,3]
[348434622,1736527841025,-567.64,0.00022465,3]
[348434623,1736527841034,-500.0,0.00022465,3]
[348434624,1736527841043,-500.0,0.00022465,3]
[348434625,1736527841053,-500.0,0.00022465,3]
[348434626,1736527841062,-500.0,0.00022465,3]
[348434627,1736527841072,-500.0,0.00022465,3]
[348434628,1736527841081,-570.59,0.00022465,3]
[348434629,1736527841090,-1412.2,0.00022465,3]
[348434630,1736527841100,-500.0,0.00022465,3]
[348434631,1736527841109,-500.0,0.00022465,3]
[348434632,1736527841119,-506.17,0.00022465,3]
[348434633,1736527841128,-500.0,0.00022465,3]
[348434634,1736527841138,-500.0,0.00022465,3]
[348434635,1736527841147,-500.0,0.00022465,3]
[348434636,1736527841157,-500.0,0.00022465,3]
[348434637,1736527841167,-512.35014227,0.00022465,3]
[348434638,1736527841178,-500.0,0.00022465,3]
[348434639,1736527841187,-500.0,0.00022465,3]
[348434640,1736527841196,-500.0,0.00022465,3]
[348434641,1736527841206,-523.16,0.00022465,3]
[348434642,1736527841215,-500.0,0.00022465,3]
[348434643,1736527841224,-594.07,0.00022465,3]
[348434644,1736527841233,-500.0,0.00022465,3]
[348434645,1736527841242,-999.08,0.00022465,3]
[348434646,1736527841252,-798.93,0.00022465,3]
[348434647,1736527841261,-500.0,0.00022465,3]
[348434648,1736527841271,-223.10170948,0.00022465,3]
[348434649,1736527841280,-760.94,0.00022465,3]
[348434650,1736527841289,-640.90221808,0.00022465,3]
[348434651,1736527841299,-1375.42,0.00022465,3]
[348434652,1736527841308,-513.82967108,0.00022465,3]
[348434653,1736527841317,-500.0,0.00022465,3]
[348434654,1736527841327,-223.27536869,0.00022465,3]
[348434655,1736527841337,-500.0,0.00022465,3]
[348434656,1736527841347,-500.0,0.00022465,3]
[348434657,1736527841356,-500.0,0.00022465,3]
[348434658,1736527841366,-500.0,0.00022465,3]
[348434659,1736527841375,-558.14,0.00022465,3]
[348434660,1736527841385,-382.58128177,0.00022465,3]
[348434661,1736527841395,-500.0,0.00022465,3]
[348434662,1736527841405,-500.0,0.00022465,3]
[348434663,1736527841415,-500.0,0.00022465,3]
[348434664,1736527841425,-500.0,0.00022465,3]
[348434665,1736527841436,-500.0,0.00022465,3]
[348434666,1736527841445,-1231.21,0.00022465,3]
[348434667,1736527841455,-500.0,0.00022465,3]
[348434668,1736527841465,-785.55,0.00022465,3]
[348434669,1736527841474,-500.0,0.00022465,3]
[348434670,1736527841484,-1449.04,0.00022465,3]
[348434671,1736527841493,-500.0,0.00022465,3]
[348434672,1736527841503,-500.0,0.00022465,3]
[348434673,1736527841513,-500.0,0.00022465,3]
[348434674,1736527841522,-500.0,0.00022465,3]
[348434675,1736527841532,-500.0,0.00022465,3]
[348434676,1736527841542,-500.0,0.00022465,3]
[348434677,1736527841551,-687.61,0.00022465,3]
[348434678,1736527841561,-9734.87,0.00022465,3]
[348434679,1736527841571,-515.81293515,0.00022465,3]
[348434680,1736527841581,-500.0,0.00022465,3]
[348434681,1736527841592,-500.0,0.00022465,3]
[348434682,1736527841601,-500.0,0.00022465,3]
[348434683,1736527841611,-500.0,0.00022465,3]
[348434684,1736527841620,-1377.2,0.00022465,3]
[348434685,1736527841630,-500.0,0.00022465,3]
[348434686,1736527841640,-500.0,0.00022465,3]
[348434687,1736527841650,-500.0,0.00022465,3]
[348434688,1736527841661,-500.0,0.00022465,3]
[348434689,1736527841670,-795.27,0.00022465,3]
[348434690,1736527841680,-500.0,0.00022465,3]
[348434691,1736527841690,-500.0,0.00022465,3]
[348434692,1736527841699,-500.0,0.00022465,3]
[348434693,1736527841709,-500.0,0.00022465,3]
[348434694,1736527841718,-569.76,0.00022465,3]
[348434695,1736527841728,-500.0,0.00022465,3]
[348434696,1736527841737,-870.05,0.00022465,3]
[348434697,1736527841747,-500.0,0.00022465,3]
[348434698,1736527841756,-500.0,0.00022465,3]
[348434699,1736527841765,-718.43,0.00022465,3]
[348434700,1736527841775,-523.76,0.00022465,3]
[348434701,1736527841785,-500.0,0.00022465,3]
[348434702,1736527841795,-500.0,0.00022465,3]
[348434703,1736527841804,-1249.38,0.00022465,3]
[348434704,1736527841814,-500.0,0.00022465,3]
[348434705,1736527841824,-500.0,0.00022465,3]
[348434706,1736527841833,-500.0,0.00022465,3]
[348434707,1736527841842,-500.0,0.00022465,3]
[348434708,1736527841852,-500.0,0.00022465,3]
[348434709,1736527841861,-500.0,0.00022465,3]
[348434710,1736527841871,-500.0,0.00022465,3]
[348434711,1736527841880,-500.0,0.00022465,3]
[348434712,1736527841890,-1089.57,0.00022465,3]
[348434713,1736527841900,-500.0,0.00022465,3]
[348434714,1736527841910,-500.0,0.00022465,3]
[348434715,1736527841919,-500.0,0.00022465,3]
[348434716,1736527841934,-500.0,0.00022465,3]
[348434717,1736527841945,-1097.85,0.00022465,3]
[348434718,1736527841955,-500.0,0.00022465,3]
[348434719,1736527841965,-500.0,0.00022465,3]
[348434720,1736527841976,-500.0,0.00022465,3]
[348434721,1736527841986,-500.0,0.00022465,3]
[348434722,1736527841997,-500.0,0.00022465,3]
[348434723,1736527842008,-997.27,0.00022465,3]
[348434724,1736527842018,-592.59,0.00022465,3]
[348434725,1736527842027,-735.56,0.00022465,3]
[348434726,1736527842037,-651.69,0.00022465,3]
[348434727,1736527842047,-500.0,0.00022465,3]
[348434728,1736527842057,-500.0,0.00022465,3]
[348434729,1736527842067,-500.0,0.00022465,3]
[348434730,1736527842076,-500.0,0.00022465,3]
[348434731,1736527842086,-500.0,0.00022465,3]
[348434732,1736527842096,-500.0,0.00022465,3]
[348434733,1736527842105,-500.0,0.00022465,3]
[348434735,1736527842115,-1868.2,0.00022465,3]
[348434737,1736527842125,-500.0,0.00022465,3]
[348434739,1736527842135,-500.0,0.00022465,3]
[348434741,1736527842145,-500.0,0.00022465,3]
[348434742,1736527842154,-883.93,0.00022465,3]
[348434744,1736527842164,-500.0,0.00022465,3]
[348434746,1736527842174,-500.0,0.00022465,3]
[348434748,1736527842184,-500.0,0.00022465,3]
[348434751,1736527842193,-604.9397858,0.00022465,3]
[348434752,1736527842203,-3153.67,0.00022465,3]
[348434754,1736527842212,-500.0,0.00022465,3]
[348434756,1736527842222,-500.0,0.00022465,3]
[348434759,1736527842231,-550.55,0.00022465,3]
[348434760,1736527842241,-500.0,0.00022465,3]
[348434762,1736527842251,-500.0,0.00022465,3]
[348434765,1736527842261,-1783.22,0.00022465,2]
[348434766,1736527842271,-500.0,0.00022465,3]
[348434768,1736527842282,-861.35,0.00022465,3]
[348434770,1736527842292,-500.0,0.00022465,3]
[348434772,1736527842301,-500.0,0.00022465,3]
[348434775,1736527842311,-500.0,0.00022465,3]
[348434776,1736527842321,-500.0,0.00022465,3]
[348434778,1736527842330,-500.0,0.00022465,3]
[348434780,1736527842340,-500.0,0.00022465,3]
[348434782,1736527842349,-4947.78,0.00022465,3]
[348434784,1736527842359,-1451.95,0.00022465,3]
[348434786,1736527842369,-500.0,0.00022465,3]
[348434788,1736527842378,-500.0,0.00022465,3]
[348434790,1736527842388,-500.0,0.00022465,3]
[348434792,1736527842397,-46502.3,0.00022465,3]
[348434794,1736527842407,-500.0,0.00022465,3]
[348434796,1736527842417,-948.0,0.00022465,3]
[348434798,1736527842429,-500.0,0.00022465,3]
[348434800,1736527842438,-1931.44,0.00022465,3]
[348434802,1736527842447,-1310.93,0.00022465,2]
[348434804,1736527842458,-7971.81,0.00022465,3]
[348434806,1736527842467,-500.0,0.00022465,3]
[348434808,1736527842476,-500.0,0.00022465,3]
[348434810,1736527842486,-500.0,0.00022465,3]
[348434812,1736527842496,-1851.49,0.00022465,3]
[348434814,1736527842506,-1188.78,0.00022465,3]
[348434816,1736527842515,-500.0,0.00022465,3]
[348434818,1736527842524,-643.14,0.00022465,3]
[348434820,1736527842534,-500.0,0.00022465,3]
[348434822,1736527842543,-500.0,0.00022465,3]
[348434824,1736527842552,-151.0,0.00022465,2]
[348434826,1736527842562,-1456.65,0.00022465,3]
[348434828,1736527842571,-500.0,0.00022465,3]
[348434830,1736527842581,-151.0,0.00022465,2]
[348434832,1736527842592,-500.0,0.00022465,3]
[348434834,1736527842601,-500.0,0.00022465,3]
[348434836,1736527842611,-500.0,0.00022465,3]
[348434838,1736527842620,-500.0,0.00022465,3]
[348434840,1736527842631,-500.0,0.00022465,3]
[348434842,1736527842641,-500.0,0.00022465,3]
[348434844,1736527842651,-500.0,0.00022465,3]
[348434846,1736527842661,-500.0,0.00022465,3]
[348434849,1736527842672,-500.0,0.00022465,3]
[348434850,1736527842684,-500.0,0.00022465,3]
[348434853,1736527842694,-500.0,0.00022465,3]
[348434854,1736527842703,-500.0,0.00022465,3]
[348434857,1736527842712,-214.53351823,0.00022465,3]
[348434859,1736527842722,-500.0,0.00022465,3]
[348434861,1736527842732,-500.0,0.00022465,3]
[348434863,1736527842741,-672.64,0.00022465,3]
[348434864,1736527842751,-1756.02,0.00022465,3]
[348434866,1736527842761,-500.0,0.00022465,3]
[348434868,1736527842770,-600.44,0.00022465,3]
[348434870,1736527842782,-500.0,0.00022465,3]
[348434872,1736527842792,-500.0,0.00022465,3]
[348434876,1736527842802,-500.0,0.00022465,3]
[348434877,1736527842811,-500.0,0.00022465,3]
[348434880,1736527842820,-654.9,0.00022465,3]
[348434883,1736527842831,-515.73,0.00022465,3]
[348434886,1736527842840,-500.0,0.00022465,3]
[348434889,1736527842850,-3161.45,0.00022465,3]
[348434892,1736527842859,-500.0,0.00022465,3]
[348434895,1736527842869,-507.40298177,0.00022465,3]
[348434898,1736527842879,-500.0,0.00022465,3]
[348434901,1736527842889,-500.0,0.00022465,3]
[348434903,1736527842899,-3561.05,0.00022465,3]
[348434906,1736527842909,-1222.94,0.00022465,3]
[348434909,1736527842918,-721.69,0.00022465,3]
[348434911,1736527842933,-778.21,0.00022465,2]
[348434913,1736527842943,-1560.23,0.00022465,3]
[348434916,1736527842952,-1763.22,0.00022465,3]
[348434919,1736527842962,-698.96,0.00022465,3]
[348434922,1736527842973,-1421.79,0.00022465,3]
[348434926,1736527842983,-500.0,0.00022465,3]
[348434930,1736527842993,-562.09,0.00022465,3]
[348434934,1736527843003,-403.41760755,0.00022465,3]
[348434937,1736527843014,-1666.59,0.00022465,3]
[348434940,1736527843024,-500.0,0.00022465,3]
[348434943,1736527843034,-501.40193362,0.00022465,3]
[348434946,1736527843043,-960.21,0.00022465,3]
[348434949,1736527843053,-500.0,0.00022465,3]
[348434952,1736527843062,-1197.79,0.00022465,3]
[348434955,1736527843071,-500.0,0.00022465,3]
[348434957,1736527843080,-713.71,0.00022465,3]
[348434960,1736527843090,-500.0,0.00022465,3]
[348434963,1736527843100,-933.73,0.00022465,3]
[348434966,1736527843109,-500.0,0.00022473,2]
[348434970,1736527843119,-222.58071285,0.000225,2]
[348434972,1736527843129,-1000.0,0.00022721,2]
[348434974,1736527843138,-1000.0,0.00022721,2]
[348434976,1736527843148,-1000.0,0.00022721,2]
[348434978,1736527843158,-500.0,0.00022739,3]
[348434980,1736527843167,-500.0,0.00022739,3]
[348434982,1736527843176,-500.0,0.00022739,3]
[348434984,1736527843186,-500.0,0.00022739,3]
[348434986,1736527843196,-500.0,0.00022739,3]
[348434988,1736527843206,-500.0,0.00022739,3]
[348434990,1736527843215,-500.0,0.00022739,3]
[348434992,1736527843224,-500.0,0.00022739,3]
[348434994,1736527843234,-500.0,0.00022739,3]
[348434996,1736527843243,-500.0,0.00022739,3]
[348434998,1736527843253,-510.14224656,0.00022739,3]
[348435000,1736527843262,-397.88460314,0.00022739,3]
[348435002,1736527843273,-7138.33,0.00022739,3]
[348435004,1736527843283,-500.0,0.00022739,3]
[348435006,1736527843292,-500.0,0.00022739,3]
[348435008,1736527843301,-500.0,0.00022739,3]
[348435010,1736527843310,-841.63,0.00022739,3]
[348435012,1736527843319,-500.0,0.00022739,3]
[348435014,1736527843328,-500.0,0.00022739,3]
[348435016,1736527843338,-500.0,0.00022739,3]
[348435018,1736527843347,-500.0,0.00022739,3]
[348435019,1736527843356,-4041.71,0.00022739,3]
[348435022,1736527843366,-500.0,0.00022739,3]
[348435023,1736527843376,-500.0,0.00022739,3]
[348435026,1736527843386,-500.0,0.00022739,3]
[348435028,1736527843395,-500.0,0.00022739,3]
[348435030,1736527843405,-500.0,0.00022739,3]
[348435032,1736527843414,-500.0,0.00022739,3]
[348435034,1736527843424,-500.0,0.00022739,3]
[348435036,1736527843436,-500.0,0.00022739,3]
[348435038,1736527843445,-500.0,0.00022739,3]
[348435040,1736527843455,-737.56,0.00022739,3]
[348435042,1736527843464,-500.0,0.00022739,3]
[348435044,1736527843474,-567.64,0.00022739,3]
[348435046,1736527843483,-500.0,0.00022739,3]
[348435048,1736527843492,-500.0,0.00022739,3]
[348435050,1736527843502,-500.0,0.00022739,3]
[348435052,1736527843512,-500.0,0.00022739,3]
[348435054,1736527843521,-500.0,0.00022739,3]
[348435056,1736527843531,-570.59,0.00022739,3]
[348435058,1736527843540,-1412.2,0.00022739,3]
[348435060,1736527843550,-500.0,0.00022739,3]
[348435062,1736527843559,-500.0,0.00022739,3]
[348435064,1736527843568,-506.17,0.00022739,3]
[348435066,1736527843578,-500.0,0.00022739,3]
[348435068,1736527843587,-500.0,0.00022739,3]
[348435070,1736527843596,-500.0,0.00022739,3]
[348435072,1736527843606,-500.0,0.00022739,3]
[348435074,1736527843615,-500.0,0.00022739,3]
[348435075,1736527843624,-500.0,0.00022739,3]
[348435077,1736527843634,-207.9178126,0.00022739,3]
[348435079,1736527843643,-523.16,0.00022739,3]
[348435082,1736527843654,-500.0,0.00022739,3]
[348435084,1736527843663,-594.07,0.00022739,3]
[348435086,1736527843673,-500.0,0.00022739,3]
[348435088,1736527843685,-999.08,0.00022739,3]
[348435090,1736527843694,-798.93,0.00022739,3]
[348435092,1736527843704,-500.0,0.00022739,3]
[348435094,1736527843713,-760.94,0.00022739,3]
[348435095,1736527843723,-1375.42,0.00022739,3]
[348435097,1736527843732,-505.62015772,0.00022739,3]
[348435099,1736527843743,-500.0,0.00022739,3]
[348435101,1736527843752,-500.0,0.00022739,3]
[348435103,1736527843762,-500.0,0.00022739,3]
[348435118,1736527843901,-500.0,0.00022739,3]
[348435120,1736527843913,-558.14,0.00022739,3]
[348435122,1736527843924,-500.0,0.00022739,3]
[348435124,1736527843938,-500.0,0.00022739,3]
[348435126,1736527843947,-445.94802594,0.00022739,3]
[348435128,1736527843957,-500.0,0.00022739,3]
[348435130,1736527843967,-500.0,0.00022739,3]
[348435132,1736527843977,-1231.21,0.00022739,3]
[348435134,1736527843986,-500.0,0.00022739,3]
[348435136,1736527843996,-785.55,0.00022739,3]
[348435138,1736527844006,-500.0,0.00022739,3]
[348435140,1736527844015,-1449.04,0.00022739,3]
[348435142,1736527844025,-500.0,0.00022739,3]
[348435144,1736527844034,-500.0,0.00022739,3]
[348435146,1736527844044,-500.0,0.00022739,3]
[348435148,1736527844053,-500.0,0.00022739,3]
[348435150,1736527844063,-500.0,0.00022739,3]
[348435152,1736527844072,-500.0,0.00022739,3]
[348435154,1736527844082,-687.61,0.00022739,3]
[348435156,1736527844091,-9734.87,0.00022739,3]
[348435158,1736527844101,-500.0,0.00022739,3]
[348435160,1736527844111,-500.0,0.00022739,3]
[348435162,1736527844121,-500.0,0.00022739,3]
[348435164,1736527844130,-500.0,0.00022739,3]
[348435166,1736527844140,-1377.2,0.00022739,3]
[348435168,1736527844149,-500.0,0.00022739,3]
[348435170,1736527844160,-500.0,0.00022739,3]
[348435172,1736527844170,-634.23530036,0.00022739,3]
[348435174,1736527844180,-372.60348383,0.00022739,3]
[348435175,1736527844190,-795.27,0.00022739,3]
[348435178,1736527844200,-500.0,0.00022739,3]
[348435179,1736527844210,-500.0,0.00022739,3]
[348435181,1736527844221,-500.0,0.00022739,3]
[348435183,1736527844231,-500.0,0.00022739,3]
[348435185,1736527844240,-569.76,0.00022739,3]
[348435187,1736527844249,-500.0,0.00022739,3]
[348435189,1736527844258,-870.05,0.00022739,3]
[348435191,1736527844267,-500.0,0.00022739,3]
[348435193,1736527844277,-500.0,0.00022739,3]
[348435195,1736527844286,-718.43,0.00022739,3]
[348435197,1736527844296,-523.76,0.00022739,3]
[348435199,1736527844305,-500.0,0.00022739,3]
[348435201,1736527844314,-500.0,0.00022739,3]
[348435203,1736527844324,-1249.38,0.00022739,3]
[348435205,1736527844333,-500.0,0.00022739,3]
[348435207,1736527844342,-500.0,0.00022739,3]
[348435209,1736527844352,-500.0,0.00022739,3]
[348435211,1736527844362,-500.0,0.00022739,3]
[348435213,1736527844372,-564.49531759,0.00022739,3]
[348435215,1736527844381,-500.0,0.00022739,3]
[348435217,1736527844390,-500.0,0.00022739,3]
[348435219,1736527844400,-1089.57,0.00022739,3]
[348435221,1736527844410,-500.0,0.00022739,3]
[348435223,1736527844420,-500.0,0.00022739,3]
[348435225,1736527844430,-500.0,0.00022739,3]
[348435227,1736527844440,-500.0,0.00022739,3]
[348435229,1736527844449,-500.0,0.00022739,3]
[348435231,1736527844458,-1097.85,0.00022739,3]
[348435233,1736527844467,-500.0,0.00022739,3]
[348435235,1736527844477,-500.0,0.00022739,3]
[348435237,1736527844488,-500.0,0.00022739,3]
[348435239,1736527844498,-500.0,0.00022739,3]
[348435241,1736527844507,-168.25516796,0.00022739,3]
[348435243,1736527844517,-997.27,0.00022739,3]
[348435245,1736527844526,-592.59,0.00022739,3]
[348435247,1736527844536,-735.56,0.00022739,3]
[348435249,1736527844545,-651.69,0.00022739,3]
[348435251,1736527844554,-500.0,0.00022739,3]
[348435253,1736527844564,-500.0,0.00022739,3]
[348435255,1736527844575,-500.0,0.00022739,3]
[348435257,1736527844584,-500.0,0.00022739,3]
[348435259,1736527844593,-500.0,0.00022739,3]
[348435261,1736527844603,-500.0,0.00022739,3]
[348435263,1736527844612,-500.0,0.00022739,3]
[348435265,1736527844622,-1868.2,0.00022739,3]
[348435267,1736527844631,-500.0,0.00022739,3]
[348435269,1736527844641,-500.0,0.00022739,3]
[348435271,1736527844650,-500.0,0.00022739,3]
[348435273,1736527844659,-883.93,0.00022739,3]
[348435275,1736527844669,-500.0,0.00022739,3]
[348435277,1736527844680,-500.0,0.00022739,3]
[348435279,1736527844690,-211.37727134,0.00022739,3]
[348435281,1736527844700,-3153.67,0.00022739,3]
[348435283,1736527844710,-500.0,0.00022739,3]
[348435285,1736527844719,-500.0,0.00022739,3]
[348435287,1736527844728,-550.55,0.00022739,3]
[348435289,1736527844738,-500.0,0.00022739,3]
[348435291,1736527844747,-500.0,0.00022739,3]
[348435292,1736527844757,-1783.22,0.00022739,2]
[348435294,1736527844767,-500.0,0.00022739,3]
[348435296,1736527844776,-861.35,0.00022739,3]
[348435298,1736527844787,-500.0,0.00022739,3]
[348435300,1736527844796,-500.0,0.00022739,3]
[348435302,1736527844806,-500.0,0.00022739,3]
[348435304,1736527844815,-231.7749447,0.00022739,3]
[348435306,1736527844824,-500.0,0.00022739,3]
[348435308,1736527844834,-500.0,0.00022739,3]
[348435310,1736527844843,-4947.78,0.00022739,3]
[348435312,1736527844853,-1451.95,0.00022739,3]
[348435314,1736527844862,-500.0,0.00022739,3]
[348435316,1736527844871,-500.0,0.00022739,3]
[348435318,1736527844880,-500.0,0.00022739,3]
[348435320,1736527844890,-46502.3,0.00022739,3]
[348435322,1736527844899,-301.1223757,0.00022739,3]
[348435324,1736527844908,-948.0,0.00022739,3]
[348435325,1736527844917,-500.0,0.00022739,3]
[348435327,1736527844929,-1931.44,0.00022739,3]
[348435329,1736527844939,-1310.93,0.00022739,2]
[348435331,1736527844948,-7971.81,0.00022739,3]
[348435333,1736527844957,-500.0,0.00022739,3]
[348435335,1736527844967,-454.48108395,0.00022739,3]
[348435337,1736527844978,-500.0,0.00022739,3]
[348435339,1736527844988,-1851.49,0.00022739,3]
[348435341,1736527844997,-1188.78,0.00022739,3]
[348435343,1736527845007,-500.0,0.00022739,3]
[348435345,1736527845016,-643.14,0.00022739,3]
[348435347,1736527845027,-500.0,0.00022739,3]
[348435349,1736527845036,-500.0,0.00022739,3]
[348435351,1736527845046,-151.0,0.00022739,7]
[348435353,1736527845055,-151.0,0.00022739,2]
[348435355,1736527845064,-1456.65,0.00022739,3]
[348435357,1736527845074,-500.0,0.00022739,3]
[348435359,1736527845084,-151.0,0.00022739,2]
[348435361,1736527845094,-500.0,0.00022739,3]
[348435363,1736527845104,-500.0,0.00022739,3]
[348435365,1736527845114,-500.0,0.00022739,3]
[348435367,1736527845123,-500.0,0.00022739,3]
[348435369,1736527845134,-500.0,0.00022739,3]
[348435371,1736527845143,-500.0,0.00022739,3]